fUSD/lending_fUSD_20250519
["ID","MTS","AMOUNT","RATE_DAILY","PERIOD"]
[361586404,1747625452730,-400.0,0.00013808,2]
[361586405,1747625452740,-400.0,0.00013808,2]
[361586406,1747625452749,-509.06203749,0.00013808,2]
[361586407,1747625452760,-402.28,0.00013808,2]
[361586408,1747625452770,-400.0,0.00013808,2]
[361586409,1747625452779,-400.0,0.00013808,2]
[361586410,1747625452789,-547.37,0.00013808,2]
[361586411,1747625452799,-769.29,0.00013808,2]
[361586412,1747625452809,-726.68,0.00013808,2]
[361586413,1747625452819,-400.0,0.00013808,2]
[361586414,1747625452829,-400.0,0.00013808,2]
[361586415,1747625452839,-409.65599488,0.00013808,2]
[361586416,1747625452849,-416.0008729,0.00013808,2]
[361586417,1747625452863,-560.61,0.00013808,2]
[361586418,1747625452872,-400.0,0.00013808,2]
[361586419,1747625452882,-450.0,0.00013808,2]
[361586420,1747625452892,-434.38,0.00013808,2]
[361586421,1747625452901,-539.76,0.00013808,2]
[361586422,1747625452911,-457.36,0.00013808,2]
[361586423,1747625452921,-400.0,0.00013808,2]
[361586424,1747625452930,-400.0,0.00013808,2]
[361586425,1747625452941,-400.0,0.00013808,2]
[361586426,1747625452950,-658.94,0.00013808,2]
[361586427,1747625452961,-400.0,0.00013808,2]
[361586428,1747625452970,-400.0,0.00013808,2]
[361586429,1747625452979,-400.0,0.00013808,2]
[361586430,1747625452989,-400.0,0.00013808,2]
[361586431,1747625452998,-400.0,0.00013808,2]
[361586432,1747625453008,-448.2,0.00013808,2]
[361586433,1747625453017,-801.61,0.00013808,2]
[361586434,1747625453027,-558.61,0.00013808,2]
[361586435,1747625453036,-839.34,0.00013808,2]
[361586436,1747625453045,-400.0,0.00013808,2]
[361586437,1747625453055,-304.63156361,0.00013808,2]
[361586438,1747625453064,-400.0,0.00013808,2]
[361586439,1747625453074,-400.0,0.00013808,2]
[361586440,1747625453083,-1127.87,0.00013808,2]
[361586441,1747625453092,-451.39,0.00013808,2]
[361586442,1747625453101,-449.15,0.00013808,2]
[361586443,1747625453113,-745.8,0.00013808,2]
[361586444,1747625453122,-400.0,0.00013808,2]
[361586445,1747625453132,-400.0,0.00013808,2]
[361586446,1747625453141,-404.55882592,0.00013808,2]
[361586447,1747625453150,-400.0,0.00013808,2]
[361586448,1747625453425,-412.75,0.00013808,2]
[361586449,1747625453494,-400.0,0.00013808,2]
[361586450,1747625453504,-400.0,0.00013808,2]
[361586451,1747625453514,-400.0,0.00013808,2]
[361586452,1747625453523,-541.86,0.00013808,2]
[361586453,1747625453533,-808.09,0.00013808,2]
[361586454,1747625453543,-512.01,0.00013808,2]
[361586455,1747625453552,-400.0,0.00013808,2]
[361586456,1747625453562,-1302.22,0.00013808,2]
[361586457,1747625453571,-658.86,0.00013808,2]
[361586458,1747625453581,-408.6,0.00013808,2]
[361586459,1747625453591,-216.10412221,0.00013808,2]
[361586460,1747625453600,-556.47,0.00013808,2]
[361586461,1747625453612,-1138.86,0.00013808,2]
[361586462,1747625453621,-539.07,0.00013808,2]
[361586463,1747625453631,-565.81,0.00013808,2]
[361586464,1747625453641,-563.71,0.00013808,2]
[361586465,1747625453650,-400.0,0.00013808,2]
[361586466,1747625453660,-400.0,0.00013808,2]
[361586467,1747625453670,-434.85,0.00013808,2]
[361586468,1747625453679,-400.0,0.00013808,2]
[361586469,1747625453689,-474.74,0.00013808,2]
[361586470,1747625453700,-961.51,0.00013808,2]
[361586471,1747625453710,-522.38,0.00013808,2]
[361586472,1747625453719,-449.34,0.00013808,2]
[361586473,1747625453729,-400.0,0.00013808,2]
[361586474,1747625453739,-400.0,0.00013808,2]
[361586475,1747625453748,-400.0,0.00013808,2]
[361586476,1747625453758,-485.9,0.00013808,2]
[361586477,1747625453768,-500.0,0.00013808,2]
[361586478,1747625453777,-726.66,0.00013808,2]
[361586479,1747625453788,-853.22,0.00013808,2]
[361586480,1747625453798,-400.0,0.00013808,2]
[361586481,1747625453808,-481.99276341,0.00013808,2]
[361586482,1747625453817,-400.0,0.00013808,2]
[361586483,1747625453827,-400.0,0.00013808,2]
[361586484,1747625453837,-400.0,0.00013808,2]
[361586485,1747625453847,-529.01,0.00013808,2]
[361586486,1747625453858,-448.98,0.00013808,2]
[361586487,1747625453869,-400.0,0.00013808,2]
[361586488,1747625453880,-602.28,0.00013808,2]
[361586489,1747625453890,-400.0,0.00013808,2]
[361586490,1747625453899,-615.38,0.00013808,2]
[361586491,1747625453910,-400.0,0.00013808,2]
[361586492,1747625453920,-873.26,0.00013808,2]
[361586493,1747625453930,-400.0,0.00013808,2]
[361586494,1747625453941,-524.5,0.00013808,2]
[361586495,1747625453952,-302.71533365,0.00013808,2]
[361586496,1747625453961,-400.0,0.00013808,2]
[361586497,1747625453971,-697.98,0.00013808,2]
[361586498,1747625453981,-408.42842385,0.00013808,2]
[361586499,1747625453990,-712.18,0.00013808,2]
[361586500,1747625454000,-462.05,0.00013808,2]
[361586501,1747625454011,-400.0,0.00013808,2]
[361586502,1747625454020,-555.65,0.00013808,2]
[361586503,1747625454030,-699.79,0.00013808,2]
[361586504,1747625454039,-1172.06,0.00013808,2]
[361586505,1747625454049,-558.31,0.00013808,2]
[361586506,1747625454058,-400.0,0.00013808,2]
[361586507,1747625454068,-165.34,0.00013808,2]
[361586508,1747625454078,-424.75,0.00013808,2]
[361586509,1747625454087,-400.0,0.00013808,2]
[361586510,1747625454097,-400.0,0.00013808,2]
[361586511,1747625454106,-1270.88,0.00013808,2]
[361586512,1747625454115,-400.0,0.00013808,2]
[361586513,1747625454125,-400.0,0.00013808,2]
[361586514,1747625454134,-400.0,0.00013808,2]
[361586515,1747625454143,-400.0,0.00013808,2]
[361586516,1747625454153,-786.49,0.00013808,2]
[361586517,1747625454162,-1197.51,0.00013808,2]
[361586518,1747625454172,-791.35,0.00013808,2]
[361586519,1747625454181,-557.29,0.00013808,2]
[361586520,1747625454190,-420.55,0.00013808,2]
[361586521,1747625454199,-400.0,0.00013808,2]
[361586522,1747625454208,-518.5,0.00013808,2]
[361586523,1747625454217,-400.0,0.00013808,2]
[361586524,1747625454227,-1193.15,0.00013808,2]
[361586525,1747625454235,-400.0,0.00013808,2]
[361586526,1747625454244,-539.87,0.00013808,2]
[361586527,1747625454253,-400.0,0.00013808,2]
[361586528,1747625454263,-1418.61,0.00013808,2]
[361586529,1747625454271,-1103.23,0.00013808,2]
[361586530,1747625454281,-462.25791582,0.00013808,2]
[361586531,1747625454290,-400.0,0.00013808,2]
[361586532,1747625454299,-524.66,0.00013808,2]
[361586533,1747625454308,-400.0,0.00013808,2]
[361586534,1747625454317,-2112.05,0.00013808,2]
[361586535,1747625454327,-400.0,0.00013808,2]
[361586536,1747625454336,-846.5,0.00013808,2]
[361586537,1747625454345,-1124.98,0.00013808,2]
[361586538,1747625454354,-400.0,0.00013808,2]
[361586539,1747625454365,-400.0,0.00013808,2]
[361586540,1747625454375,-400.0,0.00013808,2]
[361586541,1747625454384,-1461.56,0.00013808,2]
[361586542,1747625454393,-400.0,0.00013808,2]
[361586543,1747625454402,-551.17,0.00013808,2]
[361586544,1747625454411,-400.0,0.00013808,2]
[361586545,1747625454420,-497.62,0.00013808,2]
[361586546,1747625454430,-819.64,0.00013808,2]
[361586547,1747625454439,-400.0,0.00013808,2]
[361586548,1747625454448,-424.66,0.00013808,2]
[361586549,1747625454457,-493.66,0.00013808,2]
[361586550,1747625454467,-431.58,0.00013808,2]
[361586551,1747625454476,-450.15,0.00013808,2]
[361586552,1747625454485,-465.15,0.00013808,2]
[361586553,1747625454494,-400.0,0.00013808,2]
[361586554,1747625454504,-1388.11,0.00013808,2]
[361586555,1747625454514,-400.0,0.00013808,2]
[361586556,1747625454523,-501.11,0.00013808,2]
[361586557,1747625454532,-400.0,0.00013808,2]
[361586558,1747625454542,-406.86911768,0.00013808,2]
[361586559,1747625454551,-439.42,0.00013808,2]
[361586560,1747625454561,-568.27,0.00013808,2]
[361586561,1747625454571,-1002.81,0.00013808,2]
[361586562,1747625454582,-506.99,0.00013808,2]
[361586563,1747625454592,-400.0,0.00013808,2]
[361586564,1747625454602,-407.91409517,0.00013808,2]
[361586565,1747625454613,-721.58,0.00013808,2]
[361586566,1747625454622,-1549.43,0.00013808,2]
[361586567,1747625454632,-400.0,0.00013808,2]
[361586568,1747625454641,-400.0,0.00013808,2]
[361586569,1747625454651,-636.4,0.00013808,2]
[361586570,1747625454660,-400.0,0.00013808,2]
[361586571,1747625454669,-400.0,0.00013808,2]
[361586572,1747625454679,-405.45327234,0.00013808,2]
[361586573,1747625454688,-400.0,0.00013808,2]
[361586574,1747625454697,-909.35,0.00013808,2]
[361586575,1747625454707,-400.0,0.00013808,2]
[361586576,1747625454717,-400.0,0.00013808,2]
[361586577,1747625454726,-400.0,0.00013808,2]
[361586578,1747625454736,-452.14,0.00013808,2]
[361586579,1747625454745,-400.0,0.00013808,2]
[361586580,1747625454754,-400.0,0.00013808,2]
[361586581,1747625454764,-1077.24,0.00013808,2]
[361586582,1747625454773,-1207.27,0.00013808,2]
[361586583,1747625454783,-637.37,0.00013808,2]
[361586584,1747625454793,-400.0,0.00013808,2]
[361586585,1747625454802,-527.02,0.00013808,2]
[361586586,1747625454812,-424.36,0.00013808,2]
[361586587,1747625454821,-690.45,0.00013808,2]
[361586588,1747625454830,-400.0,0.00013808,2]
[361586589,1747625454840,-400.0,0.00013808,2]
[361586590,1747625454850,-400.0,0.00013808,2]
[361586591,1747625454862,-400.0,0.00013808,2]
[361586592,1747625454872,-494.4,0.00013808,2]
[361586593,1747625454881,-859.59,0.00013808,2]
[361586594,1747625454891,-400.0,0.00013808,2]
[361586595,1747625454900,-433.89,0.00013808,2]
[361586596,1747625454910,-441.47,0.00013808,2]
[361586597,1747625454919,-400.0,0.00013808,2]
[361586598,1747625454928,-791.91,0.00013808,2]
[361586599,1747625454939,-610.21,0.00013808,2]
[361586600,1747625454948,-448.92,0.00013808,2]
[361586601,1747625454958,-786.31,0.00013808,2]
[361586602,1747625454967,-628.29,0.00013808,2]
[361586603,1747625454976,-198.96779388,0.00013808,2]
[361586604,1747625454987,-466.27,0.00013808,2]
[361586605,1747625454998,-548.8,0.00013808,2]
[361586606,1747625455008,-1059.46,0.00013808,2]
[361586607,1747625455018,-439.69,0.00013808,2]
[361586608,1747625455028,-926.78,0.00013808,2]
[361586609,1747625455040,-400.0,0.00013808,2]
[361586610,1747625455050,-887.63,0.00013808,2]
[361586611,1747625455059,-400.0,0.00013808,2]
[361586612,1747625455069,-400.0,0.00013808,2]
[361586613,1747625455079,-668.87,0.00013808,2]
[361586614,1747625455088,-949.93,0.00013808,2]
[361586615,1747625455097,-763.32,0.00013808,2]
[361586616,1747625455106,-400.0,0.00013808,2]
[361586617,1747625455116,-400.0,0.00013808,2]
[361586618,1747625455125,-1513.25,0.00013808,2]
[361586619,1747625455134,-400.0,0.00013808,2]
[361586620,1747625455144,-400.0,0.00013808,2]
[361586621,1747625455153,-400.0,0.00013808,2]
[361586622,1747625455162,-477.39,0.00013808,2]
[361586623,1747625455171,-886.19,0.00013808,2]
[361586624,1747625455181,-982.72,0.00013808,2]
[361586625,1747625455190,-400.0,0.00013808,2]
[361586626,1747625455203,-417.21,0.00013808,2]
[361586627,1747625455212,-334.49951885,0.00013808,2]
[361586628,1747625455221,-400.0,0.00013808,2]
[361586629,1747625455231,-400.0,0.00013808,2]
[361586630,1747625455240,-400.0,0.00013808,2]
[361586631,1747625455249,-1135.67,0.00013808,2]
[361586632,1747625455258,-400.0,0.00013808,2]
[361586633,1747625455267,-1433.64,0.00013808,2]
[361586634,1747625455276,-640.64,0.00013808,2]
[361586635,1747625455285,-400.0,0.00013808,2]
[361586636,1747625455294,-400.0,0.00013808,2]
[361586637,1747625455303,-749.61,0.00013808,2]
[361586638,1747625455312,-627.02,0.00013808,2]
[361586639,1747625455321,-442.67,0.00013808,2]
[361586640,1747625455330,-443.40595828,0.00013808,2]
[361586641,1747625455339,-1168.99,0.00013808,2]
[361586642,1747625455349,-801.48,0.00013808,2]
[361586643,1747625455359,-1035.6,0.00013808,2]
[361586644,1747625455368,-400.0,0.00013808,2]
[361586645,1747625455377,-402.95,0.00013808,2]
[361586646,1747625455386,-400.0,0.00013808,2]
[361586647,1747625455396,-804.5,0.00013808,2]
[361586648,1747625455405,-400.0,0.00013808,2]
[361586649,1747625455414,-1230.38,0.00013808,2]
[361586650,1747625455424,-632.13,0.00013808,2]
[361586651,1747625455433,-400.0,0.00013808,2]
[361586652,1747625455443,-1051.89,0.00013808,2]
[361586653,1747625455453,-421.19,0.00013808,2]
[361586654,1747625455464,-610.37,0.00013808,2]
[361586655,1747625455473,-400.0,0.00013808,2]
[361586656,1747625455483,-853.94,0.00013808,2]
[361586657,1747625455492,-400.0,0.00013808,2]
[361586658,1747625455501,-500.86,0.00013808,2]
[361586659,1747625455510,-456.85686662,0.00013808,2]
[361586660,1747625455519,-400.0,0.00013808,2]
[361586661,1747625455528,-700.74,0.00013808,2]
[361586662,1747625455537,-495.48,0.00013808,2]
[361586663,1747625455546,-404.44713037,0.00013808,2]
[361586664,1747625455555,-1606.44,0.00013808,2]
[361586665,1747625455566,-400.32,0.00013808,2]
[361586666,1747625455575,-633.45,0.00013808,2]
[361586667,1747625455584,-1094.42,0.00013808,2]
[361586668,1747625455593,-1170.99,0.00013808,2]
[361586669,1747625455603,-2132.32,0.00013808,2]
[361586670,1747625455612,-1402.82,0.00013808,2]
[361586671,1747625455622,-400.0,0.00013808,2]
[361586672,1747625455631,-400.0,0.00013808,2]
[361586673,1747625455646,-1001.87,0.00013808,2]
[361586674,1747625455655,-1827.52,0.00013808,2]
[361586675,1747625455664,-426.18,0.00013808,2]
[361586676,1747625455673,-6778.91,0.00013808,2]
[361586677,1747625455682,-552.08,0.00013808,2]
[361586678,1747625455691,-1690.07,0.00013808,2]
[361586679,1747625455701,-914.26,0.00013808,2]
[361586680,1747625455710,-1504.32,0.00013808,2]
[361586681,1747625455720,-3937.5,0.00013808,2]
[361586682,1747625455730,-400.0,0.00013808,2]
[361586683,1747625455740,-8297.07,0.00013808,2]
[361586684,1747625455751,-442.69,0.00013808,2]
[361586685,1747625455761,-7597.01,0.00013808,2]
[361586686,1747625455772,-4171.65,0.00013808,2]
[361586687,1747625455782,-597.47,0.00013808,2]
[361586688,1747625455857,-884.35,0.00013808,2]
[361586689,1747625455869,-400.0,0.00013808,2]
[361586690,1747625455879,-400.0,0.00013808,2]
[361586691,1747625455888,-1076.39,0.00013808,2]
[361586692,1747625455897,-408.35801182,0.00013808,2]
[361586693,1747625455908,-400.0,0.00013808,2]
[361586694,1747625455916,-2442.25,0.00013808,2]
[361586695,1747625455926,-499.97,0.00013808,2]
[361586696,1747625455935,-400.0,0.00013808,2]
[361586697,1747625455945,-400.0,0.00013808,2]
[361586698,1747625455954,-2449.16,0.00013808,2]
[361586699,1747625455963,-462.01,0.00013808,2]
[361586700,1747625455973,-416.1,0.00013808,2]
[361586701,1747625455982,-631.12,0.00013808,2]
[361586702,1747625455991,-549.48,0.00013808,2]
[361586703,1747625456001,-2574.34,0.00013808,2]
[361586704,1747625456010,-609.02,0.00013808,2]
[361586705,1747625456019,-844.3,0.00013808,2]
[361586706,1747625456028,-400.0,0.00013808,2]
[361586707,1747625456038,-400.0,0.00013808,2]
[361586708,1747625456047,-643.43,0.00013808,2]
[361586709,1747625456056,-1051.2,0.00013808,2]
[361586710,1747625456065,-400.0,0.00013808,2]
[361586711,1747625456074,-1235.7,0.00013808,2]
[361586712,1747625456083,-400.0,0.00013808,2]
[361586713,1747625456092,-1285.25,0.00013808,2]
[361586714,1747625456101,-698.81,0.00013808,2]
[361586715,1747625456112,-4426.48,0.00013808,2]
[361586716,1747625456124,-602.11,0.00013808,2]
[361586717,1747625456133,-1050.82,0.00013808,2]
[361586718,1747625456143,-502.11,0.00013808,2]
[361586719,1747625456153,-400.0,0.00013808,2]
[361586720,1747625456162,-1380.78,0.00013808,2]
[361586721,1747625456172,-656.26,0.00013808,2]
[361586722,1747625456181,-662.54,0.00013808,2]
[361586723,1747625456190,-565.11,0.00013808,2]
[361586724,1747625456200,-81923.32,0.00013808,2]
[361586725,1747625456209,-400.0,0.00013808,2]
[361586726,1747625456218,-400.0,0.00013808,2]
[361586727,1747625456227,-1791.84,0.00013808,2]
[361586728,1747625456236,-1109.76,0.00013808,2]
[361586729,1747625456245,-1241.54,0.00013808,2]
[361586730,1747625456255,-669.76,0.00013808,2]
[361586731,1747625456264,-959.78,0.00013808,2]
[361586732,1747625456273,-1270.86,0.00013808,2]
[361586733,1747625456283,-818.97,0.00013808,2]
[361586734,1747625456293,-3596.84,0.00013808,2]
[361586735,1747625456302,-400.0,0.00013808,2]
[361586736,1747625456316,-1121.37,0.00013808,2]
[361586737,1747625456326,-12333.66,0.00013808,2]
[361586738,1747625456336,-428.78,0.00013808,2]
[361586739,1747625456345,-400.0,0.00013808,2]
[361586740,1747625456355,-1005.37,0.00013808,2]
[361586741,1747625456367,-1507.87,0.00013808,2]
[361586742,1747625456376,-661.99,0.00013808,2]
[361586743,1747625456386,-7805.54,0.00013808,2]
[361586744,1747625456396,-1007.06,0.00013808,2]
[361586745,1747625456406,-1290.11,0.00013808,2]
[361586746,1747625456417,-684.56,0.00013808,2]
[361586747,1747625456426,-818.98,0.00013808,2]
[361586748,1747625456436,-1009.81,0.00013808,2]
[361586749,1747625456446,-440.88517072,0.00013808,2]
[361586750,1747625456455,-558.38,0.00013808,2]
[361586751,1747625456465,-2378.89,0.00013808,2]
[361586752,1747625456475,-488.73362513,0.00013808,2]
[361586753,1747625456484,-826.92,0.00013808,2]
[361586754,1747625456494,-2599.9,0.00013808,2]
[361586755,1747625456503,-11447.28,0.00013808,2]
[361586756,1747625456514,-917.85,0.00013808,2]
[361586757,1747625456523,-722.05,0.00013808,2]
[361586758,1747625456532,-1166.53,0.00013808,2]
[361586759,1747625456541,-1983.2,0.00013808,2]
[361586760,1747625456551,-2449.01,0.00013808,2]
[361586761,1747625456562,-400.0,0.00013808,2]
[361586762,1747625456572,-778.3,0.00013808,2]
[361586763,1747625456582,-2652.13,0.00013808,2]
[361586764,1747625456592,-1174.93,0.00013808,2]
[361586765,1747625456601,-459.55,0.00013808,2]
[361586766,1747625456611,-413.47,0.00013808,2]
[361586767,1747625456620,-7477.09,0.00013808,2]
[361586768,1747625456630,-1729.51,0.00013808,2]
[361586769,1747625456639,-18764.63,0.00013808,2]
[361586770,1747625456649,-1198.87,0.00013808,2]
[361586771,1747625456658,-1660.48,0.00013808,2]
[361586772,1747625456667,-486.16758364,0.00013808,2]
[361586773,1747625456682,-729.37,0.00013808,2]
[361586774,1747625456691,-990.27,0.00013808,2]
[361586775,1747625456700,-828.54,0.00013808,2]
[361586776,1747625456711,-3662.47,0.00013808,2]
[361586777,1747625456722,-1353.11,0.00013808,2]
[361586778,1747625456732,-2031.81,0.00013808,2]
[361586779,1747625456741,-649.86,0.00013808,2]
[361586780,1747625456751,-400.0,0.00013808,2]
[361586781,1747625456760,-400.0,0.00013808,2]
[361586782,1747625456770,-738.71,0.00013808,2]
[361586783,1747625456780,-400.0,0.00013808,2]
[361586784,1747625456790,-2548.16,0.00013808,2]
[361586785,1747625456799,-400.0,0.00013808,2]
[361586786,1747625456809,-9312.45,0.00013808,2]
[361586787,1747625456820,-924.46,0.00013808,2]
[361586788,1747625456829,-1860.84,0.00013808,2]
[361586789,1747625456842,-1256.36,0.00013808,2]
[361586790,1747625456852,-400.0,0.00013808,2]
[361586791,1747625456864,-4669.21,0.00013808,2]
[361586792,1747625456874,-897.91,0.00013808,2]
[361586793,1747625456884,-1219.61,0.00013808,2]
[361586794,1747625456895,-400.0,0.00013808,2]
[361586795,1747625456906,-400.0,0.00013808,2]
[361586796,1747625456915,-442.59,0.00013808,2]
[361586797,1747625456925,-404.77332661,0.00013808,2]
[361586798,1747625456937,-400.0,0.00013808,2]
[361586799,1747625456951,-535.36,0.00013808,2]
[361586800,1747625456961,-400.0,0.00013808,2]
[361586801,1747625456971,-4857.43,0.00013808,2]
[361586802,1747625456980,-1222.54,0.00013808,2]
[361586803,1747625456990,-535.58,0.00013808,2]
[361586804,1747625457000,-1618.71,0.00013808,2]
[361586805,1747625457009,-807.76,0.00013808,2]
[361586806,1747625457019,-15863.33,0.00013808,2]
[361586807,1747625457028,-379.58648246,0.00013808,2]
[361586808,1747625457038,-661.86,0.00013808,2]
[361586809,1747625457047,-459.81,0.00013808,2]
[361586810,1747625457056,-2379.49,0.00013808,2]
[361586811,1747625457066,-400.0,0.00013808,2]
[361586812,1747625457075,-675.57,0.00013808,2]
[361586813,1747625457084,-1375.46,0.00013808,2]
[361586814,1747625457095,-3417.29,0.00013808,2]
[361586815,1747625457104,-3534.52,0.00013808,2]
[361586816,1747625457115,-676.84,0.00013808,2]
[361586817,1747625457124,-159.75034669,0.00013808,2]
[361586818,1747625457134,-1000.0,0.00013808,2]
[361586819,1747625457143,-1885.09,0.00013808,2]
[361586820,1747625457153,-868.49,0.00013808,2]
[361586821,1747625457162,-400.0,0.00013808,2]
[361586822,1747625457171,-1265.41,0.00013808,2]
[361586823,1747625457181,-2715.9,0.00013808,2]
[361586824,1747625457190,-2864.75,0.00013808,2]
[361586825,1747625457200,-1947.14,0.00013808,2]
[361586826,1747625457209,-403.13919923,0.00013808,2]
[361586827,1747625457218,-5764.49,0.00013808,2]
[361586828,1747625457227,-707.15,0.00013808,2]
[361586829,1747625457237,-400.0,0.00013808,2]
[361586830,1747625457247,-400.0,0.00013808,2]
[361586831,1747625457256,-778.32,0.00013808,2]
[361586832,1747625457265,-400.0,0.00013808,2]
[361586833,1747625457274,-564.44,0.00013808,2]
[361586834,1747625457284,-400.0,0.00013808,2]
[361586835,1747625457294,-700.67,0.00013808,2]
[361586836,1747625457303,-434.96,0.00013808,2]
[361586837,1747625457314,-2566.51,0.00013808,2]
[361586838,1747625457323,-532.79,0.00013808,2]
[361586839,1747625457334,-492.59,0.00013808,2]
[361586840,1747625457343,-403.03568933,0.00013808,2]
[361586841,1747625457353,-509.99445656,0.00013808,2]
[361586842,1747625457364,-400.0,0.00013808,2]
[361586843,1747625457373,-582.19,0.00013808,2]
[361586844,1747625457383,-2077.26,0.00013808,2]
[361586845,1747625457392,-400.0,0.00013808,2]
[361586846,1747625457402,-841.76,0.00013808,2]
[361586847,1747625457412,-1207.22,0.00013808,2]
[361586848,1747625457422,-795.48,0.00013808,2]
[361586849,1747625457431,-781.94,0.00013808,2]
[361586850,1747625457441,-400.0,0.00013808,2]
[361586851,1747625457450,-605.41,0.00013808,2]
[361586852,1747625457459,-400.0,0.00013808,2]
[361586853,1747625457468,-634.29,0.00013808,2]
[361586854,1747625457478,-400.0,0.00013808,2]
[361586855,1747625457487,-447.63,0.00013808,2]
[361586856,1747625457496,-693.98,0.00013808,2]
[361586857,1747625457505,-1082.79,0.00013808,2]
[361586858,1747625457515,-8096.22,0.00013808,2]
[361586859,1747625457524,-190.4259576,0.00013808,2]
[361586860,1747625458080,-2497.0640424,0.00013808,2]
[361586861,1747625458090,-1447.6,0.00013808,2]
[361586862,1747625458099,-1046.89,0.00013808,2]
[361586863,1747625458108,-213.62919074,0.00013808,2]
[361586864,1747625458119,-2655.55,0.00013808,2]
[361586865,1747625458128,-1198.16,0.00013808,2]
[361586866,1747625458137,-2600.64,0.00013808,2]
[361586867,1747625458146,-400.0,0.00013808,2]
[361586868,1747625458156,-1267.95,0.00013808,2]
[361586869,1747625458165,-677.34,0.00013808,2]
[361586870,1747625458174,-400.0,0.00013808,2]
[361586871,1747625458183,-577.73,0.00013808,2]
[361586872,1747625458192,-400.0,0.00013808,2]
[361586873,1747625458201,-13023.16,0.00013808,2]
[361586874,1747625458210,-2232.19,0.00013808,2]
[361586875,1747625458219,-459.87,0.00013808,2]
[361586876,1747625458227,-1031.79,0.00013808,2]
[361586877,1747625458236,-1748.47389075,0.00013808,2]
[361586878,1747625458255,-2295.01610925,0.00013808,2]
[361586879,1747625458264,-1148.22245672,0.00013808,2]
[361586880,1747625458301,-508.64754328,0.00013808,2]
[361586881,1747625458310,-400.0,0.00013808,2]
[361586882,1747625458319,-511.08,0.00013808,2]
[361586883,1747625458328,-408.95,0.00013808,2]
[361586884,1747625458337,-400.0,0.00013808,2]
[361586885,1747625458346,-191.10573058,0.00013808,2]
[361586886,1747625458382,-58.61822256,0.00013808,2]
[361586887,1747625458392,-528.83,0.00013808,2]
[361586888,1747625458402,-400.0,0.00013808,2]
[361586889,1747625458412,-400.0,0.00013808,2]
[361586890,1747625458421,-400.0,0.00013808,2]
[361586891,1747625458430,-400.0,0.00013808,2]
[361586892,1747625458439,-400.0,0.00013808,2]
[361586893,1747625458448,-400.0,0.00013808,2]
[361586894,1747625458457,-400.0,0.00013808,2]
[361586895,1747625458466,-2017.51,0.00013808,2]
[361586896,1747625458475,-1344.09,0.00013808,2]
[361586897,1747625458484,-11314.83,0.00013808,2]
[361586898,1747625458493,-1061.03,0.00013808,2]
[361586899,1747625458504,-1010.49,0.00013808,2]
[361586900,1747625458513,-1948.38,0.00013808,2]
[361586901,1747625458523,-1387.04,0.00013808,2]
[361586902,1747625458532,-241.13971964,0.00013808,2]
[361586903,1747625459158,-400.0,0.00013698,2]